Workbook

Sheet List1
A3: Obec , IČ: Náklo, 00299251
A5: Rozpočtové opatření č. 7 - červen 2022
A7: V souladu s ustanovením § 16 zákona č. 250/2000 Sb., o rozpočtových pravidlech územních rozpočtů dojde k rozpočtovému
A8: opatření v případě změn rozpočtových prostředků na závazných ukazatelích.
A10: Rozpočtové opatření č. 7/2022 (předloženo na Radě obce 13. 6. 2022) a doplněno při jednání na zasedání Rady obce
A12: PŘÍJMY
A13: PAR | B13: POL | C13: UZ | D13: PARAGRAF | E13: popis | F13: Rozpočet na rok 2022 | G13: Rozpočet po změnách | H13: změna ROZP | I13: ROZP po ZMĚNĚ | J13: POZNÁMKA
I14: =H14+G14 -> 0
I15: =H15+G15 -> 0
D16: Celkem ZMĚNY v PŘÍJMECH | F16: 33700619.7 | G16: 35858640.73 | H16: =H15 -> 0 | I16: =H16+G16 -> 35858640.73
D18: Celkem PŘÍJMY | F18: =G16 -> 35858640.73 | G18: =G16 -> 35858640.73 | H18: =H16 -> 0 | I18: =F18+H18 -> 35858640.73
A20: VÝDAJE:
A21: PAR | B21: POL | C21: UZ | D21: PARAGRAF | E21: popis | F21: Rozpočet na rok 2022 | G21: Rozpočet po změnách | H21: změna ROZP | I21: ROZP po ZMĚNĚ | J21: POZNÁMKA
A22: 3639 | B22: 6130 | E22: Pozemky | F22: 54935.7 | G22: 0 | H22: 59384 | I22: =H22+G22 -> 59384
A23: 3639 | D23: Komunální služby a územní rozvoj jinde nazařazené | F23: 7667935.7 | G23: 7750000.04 | H23: =H22 -> 59384 | I23: =H23+G23 -> 7809384.04
A24: 6171 | B24: 5169 | E24: Nákup ostatních služeb | F24: 1500000 | G24: 1583821.46 | H24: -59384 | I24: =H24+G24 -> 1524437.46
A25: 6171 | D25: Činnost místní samosprávy | F25: 5427999 | G25: 9629451.46 | H25: =H24 -> -59384 | I25: 9570067.46
A26: 3631 | B26: 5169 | E26: Nákup ostatních služeb | F26: 10000 | G26: 10000 | H26: -3873.68 | I26: 6126.32
A27: 3631 | B27: 5171 | E27: Opravy a udržování | F27: 50000 | G27: 40000 | H27: 3873.68 | I27: 43873.68
A28: 3631 | D28: Veřejné osvětlení | F28: 300000 | G28: 370000 | H28: =H27+H26 -> 0 | I28: 370000
A29: 2219 | B29: 6121 | E29: Stavby | F29: 0 | G29: 92200.76 | H29: 2000 | I29: 94200.76
A30: 2219 | B30: 5171 | E30: opravy a udržování | F30: 50000 | G30: 1231706.55 | H30: -2000 | I30: 1229706.55
A31: 2219 | D31: Ostatní záležitosti pozemních komunikací | F31: 247510 | G31: 1521417.31 | H31: =H30+H29 -> 0 | I31: =H31+G31 -> 1521417.31
A32: 3429 | B32: 5153 | E32: Plyn | F32: 35000 | G32: 35000 | H32: 33371.86 | I32: =H32+G32 -> 68371.86 | J32: zálohy plyn
A33: 3429 | D33: Ostatní zájmová činnost a rekreace | F33: 5925352 | G33: 6190352 | H33: 33371.86 | I33: 6223723.86
A34: 6112 | B34: 5031 | E34: Povinné poj.na soc.zab.a přísp.na st.pol.zaměstnan | F34: 155000 | G34: 155000 | H34: -4500 | I34: 150500 | J34: pojištění
A35: 6112 | B35: 5163 | E35: Služby peněžních ústavů | F35: 5000 | G35: 5000 | H35: 4500 | I35: 9500 | J35: pojištění
A36: 6112 | D36: Zastupitelstva obcí | F36: 1355000 | G36: =F36 -> 1355000 | H36: =H35+H34 -> 0 | I36: 1355000
A37: 6171 | B37: 5169 | E37: Nákup ostatních služeb | F37: 1500000 | G37: 1524437.46 | H37: -57243.86 | I37: =H37+G37 -> 1467193.6 | J37: pojištění, zálohy plynu
A38: 6171 | D38: Činnost místní správy | F38: 5427999 | G38: 9329067.46 | H38: -57243.86 | I38: =H38+G38 -> 9271823.6
A39: 6320 | B39: 5163 | E39: Služby peněžních ústavů | F39: 51000 | G39: 51000 | H39: 23872 | I39: =H39+G39 -> 74872 | J39: pojištění
A40: 6320 | D40: Pojištění funkčně nespecifikované | F40: 51000 | G40: 51000 | H40: 23872 | I40: 74872
D41: Celkem ZMĚNY ve VÝDAJÍCH | F41: 33700619.7 | G41: =[1]List1!$I$75 -> 39567550.2 | H41: =H23+H25+H28+H31+H33+H36+H38+H40 -> 0 | I41: =G41 -> 39567550.2
D43: Celkem VÝDAJE | G43: =G41 -> 39567550.2 | H43: =H41 -> 0 | I43: =I41 -> 39567550.2
D45: Celkem 5XXX | F45: 26883842.95 | G45: 0 | H45: 26883842.95
D46: Celkem 6XXX | F46: 12683707.25 | G46: 0 | H46: 12683707.25
A49: FINANCOVÁNÍ
A50: PAR | B50: POL | C50: UZ | D50: PARAGRAF | E50: popis | F50: Rozpočet na rok 2022 | G50: Rozpočet po změnách | H50: změna ROZP | I50: ROZP po ZMĚNĚ
D53: Celkem ZMĚNY ve FINANCOVÁNÍ: | I53: =I51 -> 0
D56: REKAPITULACE:
D58: Celkem PŘÍJMY | G58: =[1]List1!I71 -> 35858640.73 | H58: =H16 -> 0 | I58: =H58+G58 -> 35858640.73
D59: Celkem FINANCOVÁNÍ: | G59: =[1]List1!I72 -> 3708909.47 | H59: =I53 -> 0 | I59: =H59+G59 -> 3708909.47
D60: Celkem PŘÍJMY+FINANCOVÁNÍ | G60: =[1]List1!I73 -> 39567550.2 | H60: =+H59+H58 -> 0 | I60: =I59+I58 -> 39567550.2
D62: Celkem VÝDAJE | G62: =[1]List1!I75 -> 39567550.2 | H62: =H43 -> 0 | I62: =H62+G62 -> 39567550.2
A65: Důvodová zpráva k rozpočtovému opatření č. 7 /2022
A67: Přesun prostředků v rámci nezajištěného výdaje je Čerpán z rezervy obce.
A69: Správce rozpočtu :
A71: Starosta obce :
A73: Rada obce schvaluje dne 13. 6. 2022 rozpočtové opatření č. 7/2022 v předloženém rozsahu.

Sheet List2
A1: TEXTY PRO FORMULÁŘ ÚPRAVA ROZPOČTU - na začátek kopírují se řádky 3-13
A2: poznámka: Texty, které budou přenášeny z tohoto formuláře, musí být zapsány pouze ve sloupci A
A5: Obec , IČ: Náklo, 00299251
A7: Rozpočtové změny roku 2019 -duben
A9: V souladu s ustanovením § 16 zákona č. 250/2000 Sb., o rozpočtových pravidlech územních rozpočtů dojde k rozpočtovému
A10: opatření v případě změn rozpočtových prostředků na závazných ukazatelích.
A12: Rozpočtové opatření č. 1/2019 (předloženo na ZQ 6. 6. 2018) a doplněno při jednání na ZO
A14: TEXTY PRO FORMULÁŘ ÚPRAVA ROZPOČTU - na začátek kopírují se řádky 16-32
A16: Důvodová zpráva k rozpočtovému opatření č. 1/2019
A18: Přesun prostředků v rámci nezajištěného výdaje je Čerpán z rezervy obce.
A20: Správce rozpočtu :
A22: Starosta obce :
A24: ZO schvaluje dne 6. 6. 2018 rozpočtové opatření č. 3/2018 v předloženém rozsahu Usnesením č. 1038/1860

Sheet List3
